[Event "*** Titled Tuesday Blitz"]
[Site "Chess.com"]
[Date "2020.04.07"]
[Round "3"]
[White "TastyFrenchFries"]
[Black "mattcolins2025"]
[Result "1-0"]
[WhiteElo "2407"]
[BlackElo "2131"]
[TimeControl "180+1"]
[EndTime "13:31:20 PDT"]
[Termination "TastyFrenchFries won by resignation"]

1. e4 {[%clk 0:02:57]} 1... c5 {[%clk 0:02:59.6]} 2. Nf3 {[%clk 0:02:56.8]} 2...
e6 {[%clk 0:02:59.7]} 3. c3 {[%clk 0:02:57.1]} 3... Nf6 {[%clk 0:02:59.5]} 4. d3
{[%clk 0:02:56.7]} 4... d5 {[%clk 0:02:59.3]} 5. Nbd2 {[%clk 0:02:57.3]} 5...
dxe4 {[%clk 0:02:59.3]} 6. dxe4 {[%clk 0:02:58.2]} 6... Nc6 {[%clk 0:02:59.3]}
7. Be2 {[%clk 0:02:48.9]} 7... Bd6 {[%clk 0:02:58.3]} 8. O-O {[%clk 0:02:49.4]}
8... O-O {[%clk 0:02:58.2]} 9. Re1 {[%clk 0:02:46.8]} 9... e5 {[%clk 0:02:53.1]}
10. Bb5 {[%clk 0:02:43.6]} 10... Ne7 {[%clk 0:02:48.8]} 11. Nc4 {[%clk
0:02:33.1]} 11... Bc7 {[%clk 0:02:46.2]} 12. Qxd8 {[%clk 0:02:27.7]} 12... Rxd8
{[%clk 0:02:45.9]} 13. Ncxe5 {[%clk 0:02:28]} 13... a6 {[%clk 0:02:44.2]} 14.
Bf1 {[%clk 0:02:20.6]} 14... Be6 {[%clk 0:02:43.2]} 15. Nd3 {[%clk 0:02:18]}
15... b6 {[%clk 0:02:30.8]} 16. Bf4 {[%clk 0:02:10.3]} 16... Rac8 {[%clk
0:02:20.4]} 17. Bxc7 {[%clk 0:02:06.7]} 17... Rxc7 {[%clk 0:02:20.9]} 18. Nf4
{[%clk 0:02:07.2]} 18... Bc8 {[%clk 0:02:21.1]} 19. a4 {[%clk 0:02:00.2]} 19...
Ng6 {[%clk 0:02:16.5]} 20. Nxg6 {[%clk 0:01:53.1]} 20... hxg6 {[%clk 0:02:16]}
21. Bc4 {[%clk 0:01:53.6]} 21... Bb7 {[%clk 0:02:08.8]} 22. Ng5 {[%clk
0:01:41.8]} 22... Re7 {[%clk 0:02:06.3]} 23. f3 {[%clk 0:01:40.3]} 23... Rd2
{[%clk 0:02:01.9]} 24. Re2 {[%clk 0:01:37.8]} 24... Rxe2 {[%clk 0:02:01.6]} 25.
Bxe2 {[%clk 0:01:38.7]} 25... Rd7 {[%clk 0:01:58.4]} 26. Rd1 {[%clk 0:01:37.6]}
26... Rxd1+ {[%clk 0:01:57]} 27. Bxd1 {[%clk 0:01:38.5]} 27... Bc6 {[%clk
0:01:56.2]} 28. Kf2 {[%clk 0:01:35.7]} 28... Kf8 {[%clk 0:01:55.4]} 29. Ke3
{[%clk 0:01:36.2]} 29... Ke7 {[%clk 0:01:55]} 30. Bb3 {[%clk 0:01:36.3]} 30...
Be8 {[%clk 0:01:54.3]} 31. h4 {[%clk 0:01:32.7]} 31... b5 {[%clk 0:01:51.1]} 32.
axb5 {[%clk 0:01:32]} 32... axb5 {[%clk 0:01:51.2]} 33. Nh3 {[%clk 0:01:28.2]}
33... Nd7 {[%clk 0:01:42]} 34. Nf4 {[%clk 0:01:25.8]} 34... Kd6 {[%clk
0:01:36.6]} 35. Bc2 {[%clk 0:01:15.4]} 35... Nb6 {[%clk 0:01:18.8]} 36. b3
{[%clk 0:01:14.8]} 36... f6 {[%clk 0:01:12.3]} 37. Nd3 {[%clk 0:00:52.8]} 37...
Bf7 {[%clk 0:01:10.4]} 38. f4 {[%clk 0:00:45.6]} 38... Be6 {[%clk 0:00:58.4]}
39. g3 {[%clk 0:00:44.5]} 39... Bf7 {[%clk 0:00:44]} 40. Nf2 {[%clk 0:00:29.6]}
40... Be6 {[%clk 0:00:35.4]} 41. Nd1 {[%clk 0:00:29]} 41... Kc6 {[%clk 0:00:26]}
42. Kd2 {[%clk 0:00:28]} 42... Bg4 {[%clk 0:00:20.8]} 43. Ne3 {[%clk 0:00:27.9]}
43... Be6 {[%clk 0:00:21.2]} 44. f5 {[%clk 0:00:24.7]} 44... Bf7 {[%clk
0:00:20.5]} 45. g4 {[%clk 0:00:24.3]} 45... gxf5 {[%clk 0:00:20.3]} 46. exf5
{[%clk 0:00:25.2]} 46... Nd7 {[%clk 0:00:19.7]} 47. Be4+ {[%clk 0:00:24.2]}
47... Kc7 {[%clk 0:00:19.4]} 48. b4 {[%clk 0:00:22.8]} 48... cxb4 {[%clk
0:00:18.1]} 49. cxb4 {[%clk 0:00:23.7]} 49... Ne5 {[%clk 0:00:18.5]} 50. Kc3
{[%clk 0:00:23.3]} 50... Kd6 {[%clk 0:00:18.2]} 51. g5 {[%clk 0:00:21.2]} 51...
fxg5 {[%clk 0:00:18.2]} 52. hxg5 {[%clk 0:00:21.7]} 52... Be8 {[%clk 0:00:17.8]}
53. Kd4 {[%clk 0:00:20.9]} 53... Bc6 {[%clk 0:00:16.6]} 54. g6 {[%clk
0:00:17.5]} 54... Nd7 {[%clk 0:00:15.6]} 55. Bxc6 {[%clk 0:00:17]} 55... Kxc6
{[%clk 0:00:15.9]} 56. Ng4 {[%clk 0:00:17.1]} 56... Nf8 {[%clk 0:00:13.8]} 57.
Ke5 {[%clk 0:00:13.7]} 57... Kd7 {[%clk 0:00:13.9]} 58. Ne3 {[%clk 0:00:11.8]}
58... Ke7 {[%clk 0:00:13.9]} 59. Nd5+ {[%clk 0:00:12.1]} 59... Kd7 {[%clk
0:00:14.1]} 60. Nc3 {[%clk 0:00:12]} 60... Ke7 {[%clk 0:00:14.2]} 61. Nxb5
{[%clk 0:00:11.8]} 61... Nd7+ {[%clk 0:00:14.9]} 62. Kd5 {[%clk 0:00:11.3]}
62... Kf6 {[%clk 0:00:15.5]} 63. Nd4 {[%clk 0:00:10.1]} 63... Nb6+ {[%clk
0:00:15.3]} 64. Kc6 {[%clk 0:00:10.1]} 64... Nc8 {[%clk 0:00:15.6]} 65. b5
{[%clk 0:00:10.3]} 65... Ne7+ {[%clk 0:00:15.8]} 66. Kc7 {[%clk 0:00:10.3]}
66... Nd5+ {[%clk 0:00:16.2]} 67. Kd6 {[%clk 0:00:10.7]} 67... Nb6 {[%clk
0:00:16]} 68. Kc6 {[%clk 0:00:10.9]} 68... Nc8 {[%clk 0:00:16.2]} 69. b6 {[%clk
0:00:11.1]} 69... Ne7+ {[%clk 0:00:16.6]} 70. Kd6 {[%clk 0:00:10.8]} 70... Nc8+
{[%clk 0:00:16.7]} 71. Kc7 {[%clk 0:00:10.9]} 71... Nxb6 {[%clk 0:00:16.9]} 72.
Kxb6 {[%clk 0:00:11.8]} 72... Ke5 {[%clk 0:00:17.5]} 73. Kc5 {[%clk 0:00:12.1]}
73... Kf4 {[%clk 0:00:17.4]} 74. Kd5 {[%clk 0:00:12.5]} 74... Kg5 {[%clk
0:00:17.9]} 75. Ke5 {[%clk 0:00:12.8]} 75... Kh6 {[%clk 0:00:18.4]} 76. Ne6
{[%clk 0:00:12.9]} 76... Kh5 {[%clk 0:00:18.5]} 77. Nxg7+ {[%clk 0:00:13.3]}
77... Kg4 {[%clk 0:00:19.3]} 78. Ne6 {[%clk 0:00:14]} 78... Kf3 {[%clk 0:00:20]}
79. g7 {[%clk 0:00:14.9]} 79... Ke2 {[%clk 0:00:20.6]} 80. g8=Q {[%clk
0:00:14.8]} 80... Kd2 {[%clk 0:00:21.3]} 81. f6 {[%clk 0:00:15.7]} 1-0

[Event "*** Titled Tuesday Blitz"]
[Site "Chess.com"]
[Date "2020.04.07"]
[Round "3"]
[White "serhanberat_ozdemir"]
[Black "petrpalachev"]
[Result "0-1"]
[WhiteElo "2465"]
[BlackElo "2753"]
[TimeControl "180+1"]
[EndTime "13:31:21 PDT"]
[Termination "petrpalachev won by resignation"]

1. e4 {[%clk 0:03:00.9]} 1... c6 {[%clk 0:02:59.3]} 2. d4 {[%clk 0:02:59]} 2...
d5 {[%clk 0:03:00.2]} 3. exd5 {[%clk 0:02:59.4]} 3... cxd5 {[%clk 0:03:01.1]} 4.
c4 {[%clk 0:02:59.9]} 4... Nf6 {[%clk 0:03:01.2]} 5. Nc3 {[%clk 0:02:59.3]} 5...
e6 {[%clk 0:03:01.6]} 6. Nf3 {[%clk 0:02:59]} 6... Bb4 {[%clk 0:03:00.3]} 7. Bd3
{[%clk 0:02:57.6]} 7... dxc4 {[%clk 0:03:00.1]} 8. Bxc4 {[%clk 0:02:57.4]} 8...
O-O {[%clk 0:03:01]} 9. O-O {[%clk 0:02:56.7]} 9... b6 {[%clk 0:03:01]} 10. Bg5
{[%clk 0:02:54.2]} 10... Bb7 {[%clk 0:03:01.1]} 11. Ne5 {[%clk 0:02:29.8]} 11...
Nc6 {[%clk 0:02:32.7]} 12. Be3 {[%clk 0:01:20.5]} 12... Rc8 {[%clk 0:02:15.3]}
13. Bb3 {[%clk 0:01:07.7]} 13... Bd6 {[%clk 0:01:58.5]} 14. f4 {[%clk
0:01:01.7]} 14... Ne7 {[%clk 0:01:56.1]} 15. Qe2 {[%clk 0:00:48.5]} 15... Ned5
{[%clk 0:01:34.3]} 16. Nxd5 {[%clk 0:00:40.2]} 16... Bxd5 {[%clk 0:01:33.4]} 17.
Rac1 {[%clk 0:00:28.2]} 17... Bxb3 {[%clk 0:01:27.1]} 18. axb3 {[%clk
0:00:29.1]} 18... Qe7 {[%clk 0:01:26.5]} 19. Qa6 {[%clk 0:00:23.1]} 19... Rxc1
{[%clk 0:01:18.1]} 20. Rxc1 {[%clk 0:00:23.6]} 20... Nd5 {[%clk 0:01:19]} 21.
Qd3 {[%clk 0:00:15.3]} 21... Qb7 {[%clk 0:01:11]} 22. Qe4 {[%clk 0:00:13]} 22...
Rc8 {[%clk 0:01:10.3]} 23. h3 {[%clk 0:00:06.4]} 23... Rxc1+ {[%clk 0:01:07.8]}
24. Bxc1 {[%clk 0:00:07.3]} 24... Qc8 {[%clk 0:01:03.8]} 25. Nc4 {[%clk
0:00:06.5]} 25... Bb8 {[%clk 0:00:51]} 26. Bd2 {[%clk 0:00:07]} 26... b5 {[%clk
0:00:49.6]} 27. Ne5 {[%clk 0:00:06.1]} 27... a6 {[%clk 0:00:47.3]} 28. Nd3
{[%clk 0:00:06.2]} 28... Bd6 {[%clk 0:00:46.3]} 29. f5 {[%clk 0:00:04.1]} 29...
Nf6 {[%clk 0:00:40.9]} 30. Qf3 {[%clk 0:00:04.6]} 30... exf5 {[%clk 0:00:40.6]}
31. Bf4 {[%clk 0:00:04.3]} 31... Bf8 {[%clk 0:00:29.7]} 32. b4 {[%clk
0:00:02.3]} 32... Ne4 {[%clk 0:00:27.6]} 33. Nc5 {[%clk 0:00:02.3]} 33... Qc6
{[%clk 0:00:25.9]} 34. Kh1 {[%clk 0:00:02.6]} 34... g6 {[%clk 0:00:25.4]} 35.
Nxe4 {[%clk 0:00:01.9]} 35... fxe4 {[%clk 0:00:25]} 36. Qe3 {[%clk 0:00:02.8]}
36... Qd5 {[%clk 0:00:23.9]} 37. Kh2 {[%clk 0:00:03.7]} 37... f5 {[%clk
0:00:23.7]} 38. Be5 {[%clk 0:00:04]} 38... Bxb4 {[%clk 0:00:22.9]} 39. Qf4
{[%clk 0:00:04.9]} 39... Bf8 {[%clk 0:00:18.9]} 40. Qg5 {[%clk 0:00:05.4]} 40...
Qe6 {[%clk 0:00:17.9]} 41. Qf4 {[%clk 0:00:03.8]} 41... h6 {[%clk 0:00:16.1]}
42. g4 {[%clk 0:00:04.3]} 42... Kh7 {[%clk 0:00:14.3]} 43. Kg3 {[%clk
0:00:03.9]} 43... Qb3+ {[%clk 0:00:08]} 44. Kh2 {[%clk 0:00:02.3]} 44... Qxb2+
{[%clk 0:00:08]} 45. Kg1 {[%clk 0:00:02.9]} 45... Qa1+ {[%clk 0:00:07.2]} 46.
Kh2 {[%clk 0:00:03.1]} 46... Qa2+ {[%clk 0:00:07.7]} 47. Kg1 {[%clk 0:00:03.7]}
47... Qe6 {[%clk 0:00:08.2]} 48. gxf5 {[%clk 0:00:03.6]} 48... Qxf5 {[%clk
0:00:07.7]} 49. Qc1 {[%clk 0:00:04.2]} 49... Qg5+ {[%clk 0:00:06.1]} 50. Qxg5
{[%clk 0:00:04.8]} 50... hxg5 {[%clk 0:00:07]} 51. Kf2 {[%clk 0:00:05.7]} 51...
Bg7 {[%clk 0:00:06.2]} 52. Ke3 {[%clk 0:00:06.6]} 52... Bxe5 {[%clk 0:00:06]}
53. dxe5 {[%clk 0:00:07.2]} 53... Kg7 {[%clk 0:00:06.9]} 54. Kxe4 {[%clk
0:00:07.9]} 54... Kf7 {[%clk 0:00:07.5]} 55. Kd5 {[%clk 0:00:08.8]} 55... Ke7
{[%clk 0:00:08]} 56. h4 {[%clk 0:00:08.5]} 56... gxh4 {[%clk 0:00:07.6]} 57. Ke4
{[%clk 0:00:09.3]} 57... g5 {[%clk 0:00:07.6]} 58. Kf3 {[%clk 0:00:10.2]} 58...
h3 {[%clk 0:00:07.5]} 59. Kg4 {[%clk 0:00:11.1]} 59... h2 {[%clk 0:00:07.5]} 0-1

[Event "*** Titled Tuesday Blitz"]
[Site "Chess.com"]
[Date "2020.04.07"]
[Round "3"]
[White "IMDT02"]
[Black "floplover"]
[Result "1-0"]
[WhiteElo "2470"]
[BlackElo "2246"]
[TimeControl "180+1"]
[EndTime "13:31:24 PDT"]
[Termination "IMDT02 won by checkmate"]

1. d4 {[%clk 0:02:59.7]} 1... Nf6 {[%clk 0:02:59.2]} 2. Bf4 {[%clk 0:03:00.1]}
2... e6 {[%clk 0:03:00.1]} 3. e3 {[%clk 0:03:00.6]} 3... d5 {[%clk 0:03:00.1]}
4. Nd2 {[%clk 0:03:01.1]} 4... c5 {[%clk 0:03:00.7]} 5. c3 {[%clk 0:03:01.2]}
5... Bd6 {[%clk 0:03:01.2]} 6. Bg3 {[%clk 0:03:01.1]} 6... Qc7 {[%clk
0:03:00.7]} 7. Ngf3 {[%clk 0:03:00.9]} 7... Nbd7 {[%clk 0:03:00.8]} 8. Bd3
{[%clk 0:02:53.2]} 8... O-O {[%clk 0:02:59.6]} 9. O-O {[%clk 0:02:51.6]} 9... e5
{[%clk 0:03:00]} 10. dxe5 {[%clk 0:02:52]} 10... Nxe5 {[%clk 0:03:00.9]} 11.
Nxe5 {[%clk 0:02:52.8]} 11... Bxe5 {[%clk 0:03:01.5]} 12. Bxe5 {[%clk
0:02:53.5]} 12... Qxe5 {[%clk 0:03:02.1]} 13. Nf3 {[%clk 0:02:53.8]} 13... Qe7
{[%clk 0:02:53]} 14. c4 {[%clk 0:02:52.1]} 14... Be6 {[%clk 0:02:35.7]} 15. Qe2
{[%clk 0:02:44.2]} 15... Rad8 {[%clk 0:02:26]} 16. Rac1 {[%clk 0:02:42.4]} 16...
Rfe8 {[%clk 0:02:23.1]} 17. Rfd1 {[%clk 0:02:38.5]} 17... b6 {[%clk 0:02:23.1]}
18. b3 {[%clk 0:02:37.6]} 18... h6 {[%clk 0:02:21.5]} 19. h3 {[%clk 0:02:34.6]}
19... Bc8 {[%clk 0:02:09]} 20. cxd5 {[%clk 0:02:18]} 20... Nxd5 {[%clk
0:02:08.1]} 21. Bb5 {[%clk 0:02:16.8]} 21... Rf8 {[%clk 0:02:07.9]} 22. Bc4
{[%clk 0:02:16.7]} 22... Bb7 {[%clk 0:02:07.4]} 23. Bd3 {[%clk 0:01:35.4]} 23...
Nb4 {[%clk 0:01:56]} 24. Bb1 {[%clk 0:01:35.4]} 24... Ba6 {[%clk 0:01:47]} 25.
Qb2 {[%clk 0:01:25.6]} 25... Rxd1+ {[%clk 0:01:29.5]} 26. Rxd1 {[%clk 0:01:25]}
26... Rd8 {[%clk 0:01:29.9]} 27. Rxd8+ {[%clk 0:01:20.1]} 27... Qxd8 {[%clk
0:01:29.4]} 28. a3 {[%clk 0:01:20.7]} 28... Qd1+ {[%clk 0:01:26.4]} 29. Kh2
{[%clk 0:01:20.9]} 29... Nd3 {[%clk 0:01:08.2]} 30. Bxd3 {[%clk 0:01:20.9]}
30... Qxd3 {[%clk 0:01:06.7]} 31. Qe5 {[%clk 0:01:13.3]} 31... Qd7 {[%clk
0:01:06.1]} 32. a4 {[%clk 0:01:11]} 32... Kh7 {[%clk 0:01:02.9]} 33. Nh4 {[%clk
0:01:07.4]} 33... Bd3 {[%clk 0:00:52.2]} 34. e4 {[%clk 0:01:03.4]} 34... Bc2
{[%clk 0:00:37.8]} 35. Nf5 {[%clk 0:00:44.8]} 35... f6 {[%clk 0:00:37.4]} 36.
Qc3 {[%clk 0:00:13.5]} 36... Bxe4 {[%clk 0:00:34.8]} 37. Ng3 {[%clk 0:00:14.1]}
37... Bg6 {[%clk 0:00:31.9]} 38. f3 {[%clk 0:00:14.4]} 38... Qd6 {[%clk
0:00:30.6]} 39. h4 {[%clk 0:00:14.3]} 39... a6 {[%clk 0:00:26.4]} 40. Kh3 {[%clk
0:00:14.6]} 40... h5 {[%clk 0:00:23]} 41. Qe3 {[%clk 0:00:13.5]} 41... b5 {[%clk
0:00:20.8]} 42. axb5 {[%clk 0:00:14.4]} 42... axb5 {[%clk 0:00:21.3]} 43. f4
{[%clk 0:00:14.8]} 43... c4 {[%clk 0:00:17.3]} 44. f5 {[%clk 0:00:15]} 44... Bf7
{[%clk 0:00:17.3]} 45. Qa7 {[%clk 0:00:10.9]} 45... Qd5 {[%clk 0:00:15]} 46.
bxc4 {[%clk 0:00:10.4]} 46... bxc4 {[%clk 0:00:15]} 47. Qc7 {[%clk 0:00:09.2]}
47... Kg8 {[%clk 0:00:13.4]} 48. Qc8+ {[%clk 0:00:08.7]} 48... Kh7 {[%clk
0:00:13.7]} 49. Qc7 {[%clk 0:00:09.6]} 49... Be8 {[%clk 0:00:12.4]} 50. Qe7
{[%clk 0:00:08.7]} 50... Bc6 {[%clk 0:00:12.1]} 51. Qe2 {[%clk 0:00:06.1]} 51...
c3 {[%clk 0:00:12.3]} 52. Qxh5+ {[%clk 0:00:05.7]} 52... Kg8 {[%clk 0:00:11.8]}
53. Qe2 {[%clk 0:00:06.2]} 53... c2 {[%clk 0:00:11.6]} 54. Qxc2 {[%clk
0:00:06.1]} 54... Bd7 {[%clk 0:00:11.3]} 55. Qf2 {[%clk 0:00:05.8]} 55... Qe5
{[%clk 0:00:10.8]} 56. Qf3 {[%clk 0:00:05.7]} 56... Kf7 {[%clk 0:00:10]} 57. Qg4
{[%clk 0:00:05.8]} 57... Qd5 {[%clk 0:00:10]} 58. h5 {[%clk 0:00:06]} 58... Bc6
{[%clk 0:00:10.2]} 59. Qe2 {[%clk 0:00:05.4]} 59... Bd7 {[%clk 0:00:10.2]} 60.
Qf2 {[%clk 0:00:04.3]} 60... Bc6 {[%clk 0:00:09.5]} 61. Qa7+ {[%clk 0:00:04.3]}
61... Kg8 {[%clk 0:00:09]} 62. Qf2 {[%clk 0:00:05.2]} 62... Kh7 {[%clk 0:00:09]}
63. Qe2 {[%clk 0:00:04.3]} 63... Bd7 {[%clk 0:00:08.6]} 64. Qg4 {[%clk
0:00:03.8]} 64... Bc6 {[%clk 0:00:07.6]} 65. Ne2 {[%clk 0:00:04]} 65... Qd3+
{[%clk 0:00:07.1]} 66. Kh2 {[%clk 0:00:04.1]} 66... Bd7 {[%clk 0:00:06.5]} 67.
Qg6+ {[%clk 0:00:02.4]} 67... Kh8 {[%clk 0:00:06.6]} 68. h6 {[%clk 0:00:03.2]}
68... gxh6 {[%clk 0:00:05.7]} 69. Qxh6+ {[%clk 0:00:03.6]} 69... Kg8 {[%clk
0:00:06.3]} 70. Qg6+ {[%clk 0:00:04.5]} 70... Kf8 {[%clk 0:00:05.9]} 71. Qxf6+
{[%clk 0:00:05.4]} 71... Ke8 {[%clk 0:00:06.5]} 72. Ng3 {[%clk 0:00:06.3]} 72...
Qd5 {[%clk 0:00:05.6]} 73. Qh8+ {[%clk 0:00:05.8]} 73... Ke7 {[%clk 0:00:05.6]}
74. f6+ {[%clk 0:00:05.9]} 74... Kd6 {[%clk 0:00:05.9]} 75. Qg7 {[%clk
0:00:06.1]} 75... Bc6 {[%clk 0:00:06]} 76. Qe7# {[%clk 0:00:06.1]} 1-0

[Event "*** Titled Tuesday Blitz"]
[Site "Chess.com"]
[Date "2020.04.07"]
[Round "3"]
[White "stoleriu"]
[Black "manmanlai1"]
[Result "0-1"]
[WhiteElo "2554"]
[BlackElo "2311"]
[TimeControl "180+1"]
[EndTime "13:31:25 PDT"]
[Termination "manmanlai1 won by resignation"]

1. e4 {[%clk 0:03:00.9]} 1... c6 {[%clk 0:03:00]} 2. Nc3 {[%clk 0:02:53.8]} 2...
d5 {[%clk 0:02:59.9]} 3. d4 {[%clk 0:02:54.7]} 3... dxe4 {[%clk 0:02:59.6]} 4.
Nxe4 {[%clk 0:02:55.6]} 4... Nf6 {[%clk 0:03:00.2]} 5. Nxf6+ {[%clk 0:02:55.3]}
5... exf6 {[%clk 0:03:01.1]} 6. c3 {[%clk 0:02:55.1]} 6... Bd6 {[%clk
0:03:01.1]} 7. Bd3 {[%clk 0:02:51.4]} 7... O-O {[%clk 0:03:01.1]} 8. Ne2 {[%clk
0:02:47.8]} 8... Re8 {[%clk 0:02:57.8]} 9. O-O {[%clk 0:02:40.6]} 9... Nd7
{[%clk 0:02:34.3]} 10. Qc2 {[%clk 0:02:32.8]} 10... Nf8 {[%clk 0:02:32.6]} 11.
Be3 {[%clk 0:02:31]} 11... Qc7 {[%clk 0:02:31.8]} 12. h3 {[%clk 0:02:27.6]}
12... h5 {[%clk 0:02:31.5]} 13. Rfe1 {[%clk 0:02:16.1]} 13... h4 {[%clk
0:02:30.9]} 14. Rad1 {[%clk 0:02:15]} 14... Be6 {[%clk 0:02:30.2]} 15. c4 {[%clk
0:02:13.6]} 15... Rad8 {[%clk 0:02:18.4]} 16. c5 {[%clk 0:02:01]} 16... Bh2+
{[%clk 0:02:17]} 17. Kh1 {[%clk 0:02:00.5]} 17... Qb8 {[%clk 0:02:14.8]} 18. b4
{[%clk 0:01:19]} 18... Bc7 {[%clk 0:02:12.1]} 19. Ng1 {[%clk 0:01:16.4]} 19...
Bd5 {[%clk 0:02:08]} 20. Bc4 {[%clk 0:01:03.3]} 20... Qc8 {[%clk 0:02:06.3]} 21.
Bxd5 {[%clk 0:01:00.4]} 21... Rxd5 {[%clk 0:02:03.4]} 22. Nf3 {[%clk 0:00:55.3]}
22... g5 {[%clk 0:02:02.8]} 23. Nh2 {[%clk 0:00:55.2]} 23... Kg7 {[%clk
0:01:50]} 24. Ng4 {[%clk 0:00:53.9]} 24... Ng6 {[%clk 0:01:42.2]} 25. Qc3 {[%clk
0:00:39.9]} 25... f5 {[%clk 0:01:31.9]} 26. Nh2 {[%clk 0:00:35.6]} 26... f6
{[%clk 0:01:29.4]} 27. Bc1 {[%clk 0:00:30.7]} 27... Bxh2 {[%clk 0:01:15.4]} 28.
Kxh2 {[%clk 0:00:28.8]} 28... a6 {[%clk 0:00:56.4]} 29. Bb2 {[%clk 0:00:18.9]}
29... Re4 {[%clk 0:00:50.3]} 30. Qf3 {[%clk 0:00:17.7]} 30... Qe6 {[%clk
0:00:44.7]} 31. Re3 {[%clk 0:00:14.6]} 31... Rd8 {[%clk 0:00:35]} 32. Rde1
{[%clk 0:00:12.7]} 32... Re8 {[%clk 0:00:34.6]} 33. a3 {[%clk 0:00:07.9]} 33...
Qd5 {[%clk 0:00:33.3]} 34. Rxe4 {[%clk 0:00:07.2]} 34... fxe4 {[%clk 0:00:28]}
35. Qe2 {[%clk 0:00:06.8]} 35... Kh6 {[%clk 0:00:24.6]} 36. Bc1 {[%clk
0:00:04.7]} 36... Qxd4 {[%clk 0:00:19.1]} 37. Qg4 {[%clk 0:00:03.6]} 37... Qd5
{[%clk 0:00:17.7]} 38. Rd1 {[%clk 0:00:02.6]} 38... Qe5+ {[%clk 0:00:17.2]} 39.
Kh1 {[%clk 0:00:02.9]} 39... Nf4 {[%clk 0:00:15]} 40. Bxf4 {[%clk 0:00:02.9]}
40... Qxf4 {[%clk 0:00:15.7]} 41. Qd7 {[%clk 0:00:02.2]} 41... Qe5 {[%clk
0:00:13.9]} 42. Re1 {[%clk 0:00:01.2]} 42... Re7 {[%clk 0:00:13.5]} 43. Qd6
{[%clk 0:00:02]} 43... Kg6 {[%clk 0:00:13.3]} 44. Qxe5 {[%clk 0:00:01.7]} 44...
Rxe5 {[%clk 0:00:13.1]} 45. Kg1 {[%clk 0:00:02.6]} 45... Kf5 {[%clk 0:00:13.3]}
46. Rd1 {[%clk 0:00:03]} 46... Rd5 {[%clk 0:00:13.8]} 47. Re1 {[%clk 0:00:03.3]}
47... Ke5 {[%clk 0:00:13.3]} 48. f3 {[%clk 0:00:03.1]} 48... f5 {[%clk
0:00:13.8]} 49. fxe4 {[%clk 0:00:03.5]} 49... fxe4 {[%clk 0:00:14.7]} 50. Rf1
{[%clk 0:00:04.4]} 50... Rd3 {[%clk 0:00:14.8]} 51. Rf8 {[%clk 0:00:04.4]} 51...
Rxa3 {[%clk 0:00:14.8]} 52. Rf7 {[%clk 0:00:04.4]} 52... Rb3 {[%clk 0:00:14.1]}
53. Rxb7 {[%clk 0:00:04.3]} 53... Kd4 {[%clk 0:00:14]} 54. Rb6 {[%clk
0:00:03.7]} 54... e3 {[%clk 0:00:14.4]} 55. Kf1 {[%clk 0:00:02.9]} 55... Rb1+
{[%clk 0:00:14.7]} 56. Ke2 {[%clk 0:00:02.5]} 56... Rb2+ {[%clk 0:00:15.3]} 57.
Kf3 {[%clk 0:00:02.2]} 57... Rf2+ {[%clk 0:00:14.1]} 58. Kg4 {[%clk 0:00:01.9]}
58... e2 {[%clk 0:00:14.4]} 59. Rxc6 {[%clk 0:00:02]} 59... e1=Q {[%clk
0:00:14.4]} 60. Rd6+ {[%clk 0:00:02.9]} 60... Kc4 {[%clk 0:00:14.8]} 61. c6
{[%clk 0:00:03.8]} 61... Rxg2+ {[%clk 0:00:14.9]} 62. Kh5 {[%clk 0:00:04.7]}
62... Qe2+ {[%clk 0:00:14.7]} 63. Kh6 {[%clk 0:00:04.5]} 63... Qe7 {[%clk
0:00:14.7]} 64. Rd7 {[%clk 0:00:04.3]} 64... Qe6+ {[%clk 0:00:15]} 65. Kh7
{[%clk 0:00:03.9]} 65... Qxc6 {[%clk 0:00:15.9]} 0-1